Workbook

Sheet 1_Cover page
A2: HUD HOME-AMERICAN RESCUE PLAN ACT (HOME-ARP)
A3: HOME-ARP SERVICES AND NON-PROFITS ASSISTANCE NOFA
A4: Cover Page
B5: APP #: | C5: (to be completed by LHC)
A6: Please review Program Guidelines and Requirements before proceeding
A7: Instructions: 1.Complete all blue shaded cells. 2. Use the dropdown menu to select from available options, where provided. 3. Green cells populate automatically. The Program has established an Application Portal for the submittal of your Application: https://lhchomearp.housinggrantmtg.com/auth/login/5ltoxfxq5. Please select "Register" to create a unique unsername and password for revisiting the site and submitting your Application and supporting documents.
B8: Link to Application Portal
A9: Applicants must separately upload: 1. Secretary of State Registration, 2. Organization Management Chart, 3. Resumes of Staff, 4. Organizational Project Experience, 5. Documentation Demonstrating Partnerships to Serve the Qualified Population, 6. 2023 Financial Statements, and 7. Cash Flow Statements. (See Checklist tab).
B10: APPLICANT INFORMATION
A11: 1 | B11: Applicant Name (Organization)
A12: =A11+0.01 -> 1.01 | B12: Applicant Address
A13: =A12+0.01 -> 1.02 | B13: Applicant City
A14: 1.03 | B14: Applicant State | C14: Louisiana
A15: 1.04 | B15: Applicant 5-digit zip code (example: 70508)
A16: 1.05 | B16: Applicant SAMs Registration Number (if applied but not received yet, note application date)
A17: 1.06 | B17: Applicant Organization Type
A18: 1.07 | B18: Authorized Representative First Name
A19: 1.08 | B19: Authorized Representative Last Name
A20: 1.09 | B20: Authorized Representative Title
A21: 1.1 | B21: Applicant Authorized Phone Number
A22: =A21+0.01 -> 1.11 | B22: Is this a celphone #
A23: 1.12 | B23: Applicant Authorized Contact Email
B24: Describe the applicant’s fiscal management structure. (Upoad the following 2023 Financial Statements, and Cash Flow Statements.)
A25: =A23+0.01 -> 1.13 | B25: Please list the Parish(es) where the entity has office locations. (select all that apply)
A26: =A25+0.01 -> 1.14 | B26: Has the entity been funded by LHC in the past?
A27: 1.15 | B27: Has the entity successfully completed work with LHC in the past 5 years?
A28: 1.16 | B28: Is the entity in good standing with LHC, local government & the state? If there has been any litigation or bankruptcies during the past seven years, or if there is pending litigation or judgment, attach a list describing these incidences.
A29: =A28+0.01 -> 1.17 | B29: Describe your organization's management structure. (Please Upload Organizational Chart)
B31: SERVICE AREA INFORMATION
A32: =A29+0.01 -> 1.18 | B32: In which Continuum of Care does the Applicant participate? (Select all that apply). See NOFA Appendix D.
A33: =A32+0.01 -> 1.19 | B33: Select the Parish(es) that make up the coverage area of the Applicant experience in providing services. (Select all that apply)
A34: 1.2 | B34: Is the entity affiliated with a parent organization or a stand-alone?
A35: 1.21 | B35: If affiliated with a parent organization, please provide name of the parent organization
A36: 1.22 | B36: Has your organization been in existence for 2 years or more from April 19, 2024?
A37: 1.23 | B37: Has your organization been providing comparable services for 2 years?
A38: 1.24 | B38: Congressional District(s)
A39: 1.25 | B39: Legislative District(s): House
A40: 1.26 | B40: Legislative District(s): Senate
B42: HOME-ARP FUNDING
A43: =A40+0.01 -> 1.27 | B43: Total HOME-ARP Program Funds Requested (Part A & B) | C43: ='2_TBRA (A)'!C62+'3_Supportive Services (B)'!C64 -> 0 | G43: Yes
A44: =A43+0.01 -> 1.28 | B44: Total HOME-ARP Nonprofit Assistance Funds Requested (Part C) | C44: ='4_Operating Assistance (C1)'!D45+'5_Capacity Building (C2)'!D40 -> 0 | G44: No
A45: =A44+0.01 -> 1.29 | B45: Total Leverage (match or other sources contribution) | C45: =SUM(C43:C44) -> 0
B47: Certification: To the best of my knowledge and belief, data and information in this application and the accompanying attachments is true and correct. This application has been duly authorized by the applicant's governing body. I have read and understand the LHC HOME-ARP funding process, application threshold requirements, and program summary requirements. I understand these requirements may be revised as additional HOME-ARP guidance is released by HUD. The applicant will comply with all HOME-ARP requirements throughout the term of the project.
B49: Signature of Certifying Official (Athorized by typed name)
B50: Title
B51: Date

Sheet 2_TBRA (A)
A2: HUD HOME-AMERICAN RESCUE PLAN ACT (HOME-ARP)
A3: HOME-ARP SERVICES AND NON-PROFITS ASSISTANCE NOFA
A4: Component A: Tenant-Based Rental Assistance (TRBA)
A5: Instructions: 1.Complete all blue shaded cells. 2. Use the dropdown menu to select from available options, where provided. 3. Green cells populate automatically.
B6: Applicant Name | C6: =IF('1_Cover page'!C11<>"",'1_Cover page'!C11,"") -> 
B7: NOFA Component | C7: Tenant-Based Rental Assistance
B9: Are you applying to administer the Tenant-Based Rental Assistance part of the NOFA?
A11: A | B11: ORGANIZATIONAL CAPACITY
A12: A1 | B12: Describe your organization's experience with providing tenant based rental assistance and related services. (Please upload a list of projects/project descriptions)
A13: A2 | B13: Please specify the number of years of demonstrated experience of your organization and top three (3) successes in administering rental assistance activities?
A14: A3 | B14: Describe your organization's experience providing other services, if applicable to the defined qualifying population.
A15: A4 | B15: Describe the experience of your staff in administering and delivering rental assistance to eligible households. (Please upload key staff resumes)
A16: A5 | B16: Describe your experience with policies, procedures, and implementing regulations administering tenant based rental assistance, including eligibility, inspections, rent and income analysis, landlord contracts, issuance of monthly rent payments.
A17: A6 | B17: Describe and discuss any experience you have (number of years) in reporting and/or record-keeping in compliance with HOME or HUD-funded activities.
A19: B | B19: ALIGNMENT TO LOCAL AND REGIONAL NEEDS
A20: B1 | B20: Specify in which parish(es) the organization intends to use HOME-ARP TBRA assistance for qualified populations.
A21: B2 | B21: Are the proposed services in a Parish that is a 2020/2021 Disaster Designate Parish?
A22: B3 | B22: Specify the municipal locations and/or rural areas, as applicable intended for HOME-ARP TBRA assisted household to use the assistance.
A23: B4 | B23: Identify your targeted population and how this funding will address their needs.
A24: B5 | B24: Include data supporting the need in the designated area, how the need is met or unmet by current providers, and the urgency for the proposed services.
A25: B6 | B25: What are the consequences if the TBRA funding is not provided?
A27: C | B27: IMPACT AND OUTCOMES
A28: C1 | B28: Describe how the target population will be reached and assessed.
A29: C2 | B29: Please describe how prior activities have resulted in meaningful impact. What outcomes were achieved?
A30: C3 | B30: How will you address and overcome barriers to program participation?
A31: C4 | B31: Please provide evidence supporting the estimated number of unduplicated persons expected to benefit from the activities.
A33: D | B33: COST EFFECTIVENESS
A34: D1 | B34: Provide a detailed description of how HOME-ARP funds will be used to support your program including the cost to administer services. (Indicate the requested funding for each activity and for each line item listed in your budget in the Budget section below).
A36: E | B36: COORDINATION / COLLABORATION
A37: E1 | B37: Describe any other partner entities, organization or funding sources (public or private) that the entity uses/will to best administer the program and provide rental and associated services to the qualified population. (Please upload any cooperation agreements, commitment letters or letters of support from partner entities).
A38: E2 | B38: Describe how specific activities will be coordinated with other organizations (public or private) and other community resources (such as COCs)?
A39: E3 | B39: Describe the organization's experience with Coordinated entry, HMIS reportinng and tracking of community needs.
A40: E4 | B40: How will this coordination contribute to the planning, implementation, operation, oversight, and performance measurement of the tenant based rental assistance efforts and the overall needs of the qualifying population?
A42: F | B42: BUDGET
B43: Proposed Number of Households Served:
B44: Proposed Service Area:
B46: Estimated Costs Table | C46: 0-1 BR | D46: 2 BR | E46: 3 BR | F46: 4 BR | G46: 5+ BR
B47: a. ENTER Estimated Monthly Housing Cost1
B48: b. ENTER Estimated Monthly Adjusted Income
B49: c. Estimated Monthly Subsidy Cost | C49: =C47 -> 0 | D49: =D47 -> 0 | E49: =E47 -> 0 | F49: =F47 -> 0 | G49: =G47 -> 0
B50: d. ENTER length of subsidy contract in months
B51: e. Total per Household Cost (c times d) | C51: =C49*C50 -> 0 | D51: =D49*D50 -> 0 | E51: =E49*E50 -> 0 | F51: =F49*F50 -> 0 | G51: =G49*G50 -> 0
B52: f. ENTER number of families to be assisted
B53: g. Basic Cost (e times f) | C53: =C51*C52 -> 0 | D53: =D51*D52 -> 0 | E53: =E51*E52 -> 0 | F53: =F51*F52 -> 0 | G53: =G51*G52 -> 0
B54: h. ENTER Per Household Deposit Cost2
B55: i. ENTER Number of Households Receiving Deposits
B56: j. Total Depost Costs (h timesi) | C56: =C54*C55 -> 0 | D56: =D54*D55 -> 0 | E56: =E54*E55 -> 0 | F56: =F54*F55 -> 0 | G56: =G54*G55 -> 0
B57: k. Total Cost by BR Size (g plus j) | C57: =C53+C56 -> 0 | D57: =D53+D56 -> 0 | E57: =E53+E56 -> 0 | F57: =F53+F56 -> 0 | G57: =G53+G56 -> 0
B58: l. Total Estimated Housing Costs (Add all costs in Row K) | C58: =SUM(C57:G57) -> 0
B59: Admin Costs
B60: m. Max Admin Request (2.5% of HOME TBRA Request) | C60: =ROUND((C58/0.9)*0.025,0) -> 0
B61: n. ENTER Admin Requested
B62: o. Total HOME TBRA Request | C62: =IF((C61+C58)=0,0,MAX(75000,MIN(725000,(C61+C58)))) -> 0
B64: 1 Use the FMR, PJ adopted payment standard, or another estimate based upon experience.
B65: 2 Use only if you intend to use subsidy funds for deposits. Use local real estate practice as a guide.
B66: 3 Calculation is based on 100% of monthly housing cost.
B67: NOTES
B68: 1. If the household demonstrates income at or greater than 50% of AMI, that household is expected to contribute to rent under HOME terms, not to exceed 30% of household income.
B69: 2. HOME-ARP funds may not exceed 24 months.
B70: 3. Single award will not exceed $725,000, considering a three year period.
B71: 4. No individual awards will be issued at less than $75,000.
B72: 5. Delivery of assistance is eligible and is not to exceed 2.5% of the total award funds.

Sheet 3_Supportive Services (B)
A2: HUD HOME-AMERICAN RESCUE PLAN ACT (HOME-ARP)
A3: HOME-ARP SERVICES AND NON-PROFITS ASSISTANCE NOFA
A4: Component B: Supportive Services
A5: Instructions: 1.Complete all blue shaded cells. 2. Use the dropdown menu to select from available options, where provided. 3. Green cells populate automatically.
B6: Applicant Name | C6: =IF('1_Cover page'!C11<>"",'1_Cover page'!C11,"") -> 
B7: NOFA Component | C7: Supportive Services
B9: Are you applying to administer the Supportive Services Assistance part of the NOFA?
A11: A | B11: ORGANIZATIONAL CAPACITY
A12: A1 | B12: Describe your organization's experience with providing the the proposed program services. (Please upload a list of projects/project descriptions)
A13: A2 | B13: Please specify the number of years of demonstrated experience of your organization and top three (3) successes in administering the designate supportive services activities?
A14: A3 | B14: Describe the experience of the staff designated to provide the proposed services. (Please upload staff resumes)
A15: A4 | B15: Describe training of your staff and how it is consistent with the needs of the proposed service(s).
A16: A5 | B16: Describe your experience with policies, procedures, and implementing regulations administering the proposed services, including intake, elgibility, service provision and follow up.
A17: A6 | B17: LHC will require organizations to submit monthly reports pertaining to expenditure of HOME-ARP funded activities. Describe and discuss any experience you have (number of years) in reporting and/or record-keeping in compliance with HOME-ARP and/or administrating a similar activity.
A19: B | B19: ALIGNMENT TO LOCAL AND REGIONAL NEEDS
A20: B1 | B20: Specify the parish(es) intended for supportive services assistance to qualified popuations.
A21: B2 | B21: Are the proposed services in a Parish that is a 2020/2021 Disaster Designate Parish?
A22: B3 | B22: Specify the municipal locations and/or rural areas, as applicable intended for HOME-ARP TBRA supportive services assistance to QP households.
A23: B4 | B23: Identify your targeted population and explain how this funding will address their needs.
A24: B5 | B24: Include data supporting the need in the designated area, how the need it met or unmet by current providers, and the urgency for the proposed services.
A25: B6 | B25: What are the consequences if the proposed services are not funded for the QP and/or for the service area?
A27: C | B27: IMPACT AND OUTCOMES
A28: C1 | B28: Describe how your entity will assess and reach the target population.
A29: C2 | B29: Describe how prior activities have resulted in meaningful impact. What outcomes were achieved?
A30: C3 | B30: Describe how your entity will address and overcome barriers to program participation?
A31: C4 | B31: Please provide evidence supporting the estimated number of unduplicated persons expected to benefit from the activities.
A33: D | B33: COST EFFECTIVENESS
A34: D1 | B34: Provide a detailed description of how HOME-ARP funds will be used to support your program including the cost to administer services. (In the table below, indicate the requested funding for each activity as a line item listed in your budget).
A36: E | B36: COORDINATION / COLLABORATION
A37: E1 | B37: Describe any other partner entities, organization or funding sources (public or private) that the entity uses/will to best administer the program and provide for the comprehensive needs of the vulnerable, qualified population. (Please upload any cooperation agreements, commitment letters or letters of support from partner entities).
A38: E2 | B38: Describe how specific activities will be coordinated with other organizations (public or private) and other community resources (such as COCs)?
A39: E3 | B39: Describe the organization's experience with Coordinated entry, HMIS reportinng and tracking of community needs.
A40: E4 | B40: How will this coordination contribute to the planning, implementation, operation, oversight, and performance measurement of the proposed project/program and address the overall needs of the qualifying population?
A42: F | B42: BUDGET
B43: Supportive Services | C43: Year 1 Budget
B44: Child care
B45: Education services
B46: Employment assistance and job training
B47: Food
B48: Housing search and counseling services, as required to assist participants to locate, obtain, and retain suitable housing
B49: Legal services
B50: Mental health services
B51: Outpatient health services
B52: Outreach services
B53: Substance abuse treatment services
B54: Transportation
B55: Case management
B56: Mediation
B57: Credit repair
B58: Services for special populations
B59: Financial assistance costs, limited to rental application fees, utility payments, moving costs, and one-time payments of rental arrears
B60: Total Supportive Services Costs Per Year | C60: =SUM(C44:C59) -> 0
B61: Max Admin Request | C61: =ROUND((C60/0.9)*0.025,0) -> 0
B62: Administrative Costs
B63: Total HOME-ARP Supportive Services Request Per Year | C63: =C60+C62 -> 0
B64: Total HOME-ARP Supportive Services Request 3 Year Budget | C64: =IF((C63)=0,0,MAX(75000,MIN(300000,(C63*3)))) -> 0
B66: NOTES
B67: 1. The anticipated maximum award is $300,000, considering the use over a 3-year period.
B68: 2. No individual awards will be issued at less than $75,000.

Sheet 4_Operating Assistance (C1)
A2: HUD HOME-AMERICAN RESCUE PLAN ACT (HOME-ARP)
A3: HOME-ARP SERVICES AND NON-PROFITS ASSISTANCE NOFA
A4: Component C1: Non-Profit Operating Assistance
A5: Instructions: 1.Complete all blue shaded cells. 2. Use the dropdown menu to select from available options, where provided. 3. Green cells populate automatically.
B6: Applicant Name | C6: =IF('1_Cover page'!C11<>"",'1_Cover page'!C11,"") -> 
B7: NOFA Component | C7: Non-Profit Operating Assistance
B9: Are you applying for C.1 Nonprofit Operating Assistant part of the NOFA?
A11: Core Criteria | B11: Have you received HOME-ARP funding or have reasonable expectation of receiving based on an existing HOME-ARP application?
B12: Which HOME-ARP funded activity are your administer or have reasonable expectation to administer based on an existing applicatiomN.including the Non-Congregate Shelter (NCS) Program or the Homeless and Housing Stability Affordable Rental Housing Development (HHSD) Program, TBRA and Supportive Services.
A14: A | B14: EXPERIENCE WITH QUALIFYING POPULATIONS
A15: A1 | B15: Identify which Qualifying Population(s) your organization has served, types of services, and overall experience in the services? (Full definitions can be found at this link: https://www.hud.gov/sites/dfiles/OCHCO/documents/2021-10cpdn.pdf) QP 1. Homeless, as defined in 24 CFR 91.5 QP 2. At risk of Homelessness, as defined in 24 CFR 91.5 QP 3. Fleeing, or Attempting to Flee, Domestic Violence, Dating Violence, Sexual Assault, Stalking, or Human Trafficking, as defined by HUD. QP 4. Other Populations where providing supportive services or assistance would prevent the family’s homelessness or would serve those with the greatest risk of housing instability.
A17: B | B17: PLANS FOR CURRENT OR FUTURE HOME- ARP FUNDING APPLICATION
A18: B1 | B18: Please describe the current status of your organization in receiving funding under another HOME ARP program.
A20: C | B20: FEASIBILITY OF FUTURE AWARD
A21: C1 | B21: Describe the use of these operating funds for the nonprofit to address a need within the State/parish/community for the qualified populations?
A22: C2 | B22: Please provide organization’s total general operating budget.
A24: D | B24: ORGANIZATIONAL NEED
A25: D1 | B25: Provide a detailed explanation of each budget item, outlining how the funds will be utilized to support and enhance the overall operations of the organization. Clearly articulate how the requested grant aligns with HOME-ARP's mission and grant priorities.
A27: E | B27: LINE ITEM BUDGET
B28: LINE ITEMS | C28: EXPLANATION | D28: Budget
B29: Employee salaries, wages, and other employee compensation and benefits not tied to any specific program, project, or activity
B30: Employee Education
B31: Employee Training
B32: Employee Travel
B33: Rent of office space or other spaces used for the organization’s general operations
B34: Utilities
B35: Communication
B36: Insurance
B37: Equipment
B38: Materials
B39: Supplies
B40: "Additional Item 1"
B41: "Additional Item 2"
B42: "Additional Item 3"
B43: "Additional Item 4"
C44: Total Operating Assistance Requested per Fiscal Year: | D44: =SUM(D29:D43) -> 0
C45: Max Possible Operating Assistance Per Fiscal Year: | D45: =IF(AND(C9="Yes", '5_Capacity Building (C2)'!C9="Yes"), MAX(0.5*C22, 75000), IF(OR('4_Operating Assistance (C1)'!C9="Yes", '5_Capacity Building (C2)'!C9="Yes"), MAX(0.5*C22, 50000), 0)) -> 0
B48: NOTES
B49: 1. HUD has established maximum limits on how much a given nonprofit may receive within that organization’s given fiscal year.
B50: • An organization receiving funding only for Nonprofit Operating or only Capacity Building is limited to the greater of: 50% of the organization’s general operating budget or $50,000.
B51: • An organization receiving funding both for Nonprofit Operating and Capacity Building is limited to the greater of: 50% of the organization’s general operating budget or $75,000.
B52: 2. The caps on HOME-ARP Nonprofit Operating and Capacity Building assistance apply to the organization as a whole and include all funding sources. Thus, a nonprofit is required to disclose to LHC and account for any such assistance of HOME-ARP Nonprofit Operating or Capacity Building funding if received from other entitlement areas.
B53: 3. The LHC award term is anticipated for a 3-year period, or earlier if the HOME-ARP associated services conclude.

Sheet 5_Capacity Building (C2)
A2: HUD HOME-AMERICAN RESCUE PLAN ACT (HOME-ARP)
A3: HOME-ARP SERVICES AND NON-PROFITS ASSISTANCE NOFA
A4: Component C2: Non-Profit Capacity Building Assistance
A5: Instructions: 1.Complete all blue shaded cells. 2. Use the dropdown menu to select from available options, where provided. 3. Green cells populate automatically.
B6: Applicant Name | C6: =IF('1_Cover page'!C11<>"",'1_Cover page'!C11,"") -> 
B7: NOFA Component | C7: Non-Profit Capacity Building Assistance
B9: Are you applying for the Nonprofit Capacity Building Assistance part of the NOFA?
A11: Core Criteria | B11: Have you received HOME-ARP funding or have reasonable expectation of receiving HOME-ARP funds based on an existing HOME-ARP application?
B12: Which HOME-ARP funded activity are you administering or have reasonable expectation to administer based on an existing application? Select all that apply.
A14: A | B14: EXPERIENCE WITH QUALIFYING POPULATIONS
A15: A1 | B15: Which Qualifying Population(s) has your organization served? (Full definitions can be found at this link: https://www.hud.gov/sites/dfiles/OCHCO/documents/2021-10cpdn.pdf) QP 1. Homeless, as defined in 24 CFR 91.5 QP 2. At risk of Homelessness, as defined in 24 CFR 91.5 QP 3. Fleeing, or Attempting to Flee, Domestic Violence, Dating Violence, Sexual Assault, Stalking, or Human Trafficking, as defined by HUD. QP 4. Other Populations where providing supportive services or assistance would prevent the family’s homelessness or would serve those with the greatest risk of housing instability.
A17: B | B17: PLANS FOR CURRENT OR FUTURE HOME- ARP FUNDING APPLICATION
A18: B1 | B18: Please decribe the current status of your organization in receiving funding under another HOME ARP program.
A20: C | B20: FEASIBILITY OF FUTURE AWARD
A21: C1 | B21: Describe the use of these capacity building funds for the nonprofit to address a need within the State/parish/community for the qualified populations?
A22: C2 | B22: Please provide organization’s total general operating budget.
A24: D | B24: ORGANIZATIONAL NEED
A25: D1 | B25: Provide a detailed explanation of each budget item, outlining how the funds will be utilized to build your organization's capacity in order to serve the increased number of individuals and families the HOME ARP funds will lead to. Clearly articulate how the requested grant aligns with HOME-ARP's mission and grant priorities. | N25: No
A27: E | B27: LINE ITEM BUDGET
B28: LINE ITEMS | C28: EXPLANATION | D28: Budget
B29: Wages/benefits for new hires whose presence will expand the organization’s capacity to deliver HOME-ARP activities
B30: Employee training or other staff development that enhances an employee’s skill set and expertise related to serving HOME-ARP populations
B31: Equipment (e.g., computer software or programs that improve organizational processes)
B32: Upgrades to Materials
B33: Upgrades to Supplies
B34: Contracts for technical assistance or for consultants with expertise related to the HOME-ARP qualifying populations.
B35: "Additional Item 1"
B36: "Additional Item 2"
B37: "Additional Item 3"
B38: "Additional Item 4"
C39: Total Capacity Building Requested per Fiscal Year: | D39: =SUM(D29:D38) -> 0
C40: Max Possible Capacity Building Requested per Fiscal Year: | D40: =IF(AND('4_Operating Assistance (C1)'!C9="Yes", C9="Yes"), MAX(0.5*C22, 75000), IF(OR('4_Operating Assistance (C1)'!C9="Yes", C9="Yes"), MAX(0.5*C22, 50000), 0)) -> 0
B42: NOTES
B43: 1. HUD has established maximum limits on how much a given nonprofit may receive within that organization’s given fiscal year.
B44: • An organization receiving funding only for Nonprofit Operating or only Capacity Building is limited to the greater of: 50% of the organization’s general operating budget or $50,000.
B45: • An organization receiving funding both for Nonprofit Operating and Capacity Building is limited to the greater of: 50% of the organization’s general operating budget or $75,000.
B46: 2. The caps on HOME-ARP Nonprofit Operating and Capacity Building assistance apply to the organization as a whole and include all funding sources. Thus, a nonprofit is required to disclose to LHC and account for any such assistance of HOME-ARP Nonprofit Operating or Capacity Building funding if received from other entitlement areas.
B47: 3. The LHC award term is anticipated for a 3-year period, or earlier if the HOME-ARP associated services conclude.

Sheet 6_Checklist
A2: HUD HOME-AMERICAN RESCUE PLAN ACT (HOME-ARP)
A3: HOME-ARP SERVICES AND NON-PROFITS ASSISTANCE NOFA
A4: Checklist
A5: Complete all blue shaded cells. Documents to be Uploaded with the Application are noted in dark blue. Please upload the requested documents though the link used to submit application.
B7: Applicant Name | C7: =IF('1_Cover page'!C11<>"",'1_Cover page'!C11,"") -> 
A9: 1 | B9: Certificate of good standing/registration from the LA Secretary of State.
A10: 2 | B10: Organizational Chart/Management Structure
A11: 3 | B11: Staff Resumes
A12: 4 | B12: Applicant's most recent (2023) Financial Statements
A13: 5 | B13: Cash Flow Statement
A14: 6 | B14: Organization's Experience/Projects
A15: 7 | B15: Partner Entities Agreements/Letters of Commitment
A16: 8 | B16: If there has been any litigation or bankruptcies during the past seven years, or if there is pending litigation or judgment, attach a list describing these incidences.

Sheet List (hidden)
A1: Louisiana Parishes | C1: Congressional District | E1: LA BOSCOC | G1: House Districts | I1: Senate Districs
A2: Acadia Parish | C2: District 1 | E2: LA-509: Baton Rouge | G2: District 1 | I2: District 1
A3: Allen Parish | C3: District 2 | E3: LA-509: Houma | G3: District 2 | I3: District 2
A4: Ascension Parish | C4: District 3 | E4: LA-509: Lake Charles | G4: District 3 | I4: District 3
A5: Assumption Parish | C5: District 4 | E5: LA-509: Plaquemines | G5: District 4 | I5: District 4
A6: Avoyelles Parish | C6: District 5 | E6: LA-509: Natchitoches | G6: District 5 | I6: District 5
A7: Beauregard Parish | C7: District 6 | E7: LA-500: Lafayette | G7: District 6 | I7: District 6
A8: Bienville Parish | E8: LA-502: Shreveport | G8: District 7 | I8: District 7
A9: Bossier Parish | E9: LA-503: NOLA | G9: District 8 | I9: District 8
A10: Caddo Parish | E10: LA-505: Monroe | G10: District 9 | I10: District 9
A11: Calcasieu Parish | E11: LA-506: Northlake | G11: District 10 | I11: District 10
A12: Caldwell Parish | E12: LA-507: Alexandria | G12: District 11 | I12: District 11
A13: Cameron Parish | G13: District 12 | I13: District 12
A14: Catahoula Parish | G14: District 13 | I14: District 13
A15: Claiborne Parish | G15: District 14 | I15: District 14
A16: Concordia Parish | G16: District 15 | I16: District 15
A17: DeSoto Parish | G17: District 16 | I17: District 16
A18: East Baton Rouge Parish | G18: District 17 | I18: District 17
A19: East Carroll Parish | G19: District 18 | I19: District 18
A20: East Feliciana Parish | G20: District 19 | I20: District 19
A21: Evangeline Parish | G21: District 20 | I21: District 20
A22: Franklin Parish | G22: District 21 | I22: District 21
A23: Grant Parish | G23: District 22 | I23: District 22
A24: Iberia Parish | G24: District 23 | I24: District 23
A25: Iberville Parish | G25: District 24 | I25: District 24
A26: Jackson Parish | G26: District 25 | I26: District 25
A27: Jefferson Parish | G27: District 26 | I27: District 26
A28: Jefferson Davis Parish | G28: District 27 | I28: District 27
A29: LaSalle Parish | G29: District 28 | I29: District 28
A30: Lafayette Parish | G30: District 29 | I30: District 29
A31: Lafourche Parish | G31: District 30 | I31: District 30
A32: Lincoln Parish | G32: District 31 | I32: District 31
A33: Livingston Parish | G33: District 32 | I33: District 32
A34: Madison Parish | G34: District 33 | I34: District 33
A35: Morehouse Parish | G35: District 34 | I35: District 34
A36: Natchitoches Parish | G36: District 35 | I36: District 35
A37: Orleans Parish | G37: District 36 | I37: District 36
A38: Ouachita Parish | G38: District 37 | I38: District 37
A39: Plaquemines Parish | G39: District 38 | I39: District 38
A40: Pointe Coupee Parish | G40: District 39 | I40: District 39
A41: Rapides Parish | G41: District 40
A42: Red River Parish | G42: District 41
A43: Richland Parish | G43: District 42
A44: Sabine Parish | G44: District 43
A45: St. Bernard Parish | G45: District 44
A46: St. Charles Parish | G46: District 45
A47: St. Helena Parish | G47: District 46
A48: St. James Parish | G48: District 47
A49: St. John The Baptist Parish | G49: District 48
A50: St. Landry Parish | G50: District 49
A51: St. Martin Parish | G51: District 50
A52: St. Mary Parish | G52: District 51
A53: St. Tammany Parish | G53: District 52
A54: Tangipahoa Parish | G54: District 53
A55: Tensas Parish | G55: District 54
A56: Terrebonne Parish | G56: District 55
A57: Union Parish | G57: District 56
A58: Vermilion Parish | G58: District 57
A59: Vernon Parish | G59: District 58
A60: Washington Parish | G60: District 59
A61: Webster Parish | G61: District 60
A62: West Baton Rouge Parish | G62: District 61
A63: West Carroll Parish | G63: District 62
A64: West Feliciana Parish | G64: District 63
A65: Winn Parish | G65: District 64
G66: District 65
G67: District 66
G68: District 67
G69: District 68
G70: District 69
G71: District 70
G72: District 71
G73: District 72
G74: District 73
G75: District 74
G76: District 75
G77: District 76
G78: District 77
G79: District 78
G80: District 79
G81: District 80
G82: District 81
G83: District 82
G84: District 83
G85: District 84
G86: District 85
G87: District 86
G88: District 87
G89: District 88
G90: District 89
G91: District 90
G92: District 91
G93: District 92
G94: District 93
G95: District 94
G96: District 95
G97: District 96
G98: District 97
G99: District 98
G100: District 99
G101: District 100
G102: District 101
G103: District 102
G104: District 103
G105: District 104
G106: District 105
